bitfinex/quotes_SOLUSD_20250908
["timestamp","ask_amount","ask_price","bid_price","bid_amount"]
[1757290630947,38.49,205.98,205.95,84.9554964]
[1757290631258,0.67,205.97,205.95,80.1]
[1757290635464,37.82,205.98,205.95,80.1]
[1757290635654,0.67,205.96,205.95,80.1]
[1757290636766,0.67,205.96,205.94,0.03]
[1757290637346,0.67,205.95,205.94,0.03]
[1757290637950,5.52517267,205.97,205.94,0.03]
[1757290638150,0.67,205.96,205.94,0.03]
[1757290642264,0.67,205.95,205.94,0.03]
[1757290642866,4.85517267,205.97,205.94,0.03]
[1757290643071,0.67,205.96,205.94,0.03]
[1757290643265,5.52536838,205.96,205.94,0.03]
[1757290643463,9.34707683,205.96,205.94,0.03]
[1757290644063,5.52536838,205.96,205.94,0.03]
[1757290644263,9.34707683,205.96,205.94,0.03]
[1757290645672,0.67,205.99,205.94,0.03]
[1757290645879,0.67,206.02,205.95,0.71]
[1757290646050,37.8,206.01,205.95,15.28548888]
[1757290646252,37.8,206.01,205.96,0.71]
[1757290646474,38.47,206.01,205.96,0.71]
[1757290646673,0.06,206.03,205.97,0.71]
[1757290646872,0.06,206.03,206.01,26.0]
[1757290647051,0.06,206.03,206.02,0.71]
[1757290647669,0.06,206.03,206.02,19.15949168]
[1757290648074,0.06,206.03,206.02,33.72648772]
[1757290648883,0.03311822,206.03,206.02,33.72648772]
[1757290651669,0.06,206.06,206.05,44.44878498]
[1757290651869,0.06,206.06,206.03,0.4853662]
[1757290652074,0.67,206.05,205.92,37.78]
[1757290652264,4.49170845,206.05,205.96,13.59559401]
[1757290652468,3.82170845,206.03,206.01,1.94292653]
[1757290652684,4.49170845,206.02,206.01,1.94292653]
[1757290652888,0.67,206.02,205.93,26.0]
[1757290653186,0.67,206.02,205.95,1.9433041]
[1757290653368,0.67,206.01,205.95,1.9433041]
[1757290653566,0.67,206.0,205.95,1.9433041]
[1757290653769,0.67,205.99,205.95,1.9433041]
[1757290654388,0.67,205.98,205.95,1.9433041]
[1757290655082,0.67,206.0,205.95,1.9433041]
[1757290655384,0.66,205.99,205.95,1.9433041]
[1757290655574,4.85417948,206.01,205.95,1.9433041]
[1757290655780,0.66,205.98,205.95,1.9433041]
[1757290656477,0.66,206.0,205.95,6.79883999]
[1757290656682,4.85417948,206.01,205.95,6.79883999]
[1757290656985,0.66,205.99,205.95,1.9433041]
[1757290657183,0.66,205.99,205.94,4.88575271]
[1757290657379,42.69417948,206.06,205.96,13.59559401]
[1757290657587,0.66,206.03,205.99,26.0]
[1757290657766,38.44,206.05,205.99,26.66]
[1757290658095,37.78,206.05,205.98,26.0]
[1757290658269,0.66,206.04,205.99,4.85460459]
[1757290658470,0.66,206.03,205.99,19.42584582]
[1757290659486,0.66,206.03,205.99,4.85460459]
[1757290659696,0.66,206.03,206.0,14.57124123]
[1757290660077,38.5,206.06,206.0,14.57124123]
[1757290660393,37.84,206.06,206.01,14.57053353]
[1757290660701,0.66,206.05,205.99,4.85460459]
[1757290660893,0.66,206.05,205.99,18.4501986]
[1757290661078,0.66,206.05,206.02,14.57053353]
[1757290661484,0.06,206.06,206.02,15.23053353]
[1757290661686,0.06,206.06,206.02,19.42439291]
[1757290661895,0.06,206.06,206.03,0.66]
[1757290662189,0.06,206.06,206.03,2.60245478]
[1757290662378,0.06,206.06,206.03,1.94245478]
[1757290662578,0.06,206.06,206.04,26.0]
[1757290662772,0.06,206.06,206.04,106.1]
[1757290662992,0.06,206.06,206.04,108.04245478]
[1757290663177,0.06,206.06,206.04,106.1]
[1757290663491,0.06,206.06,206.05,1.94245478]
[1757290664575,0.72,206.06,206.05,1.94245478]
[1757290665694,0.06,206.06,206.05,1.94245478]
[1757290666198,0.06,206.06,206.05,129.63123976]
[1757290666389,0.06,206.06,206.05,95.63804879]
[1757290667076,0.06,206.06,206.05,100.49123976]
[1757290667282,0.06,206.06,206.05,86.89564575]
[1757290669502,0.06,206.06,206.05,6.79564575]
[1757290671999,0.72,206.06,206.05,1.94245478]
[1757290672376,0.06,206.06,206.05,1.94245478]
[1757290672598,0.06,206.06,206.05,6.79564575]
[1757290676803,0.06,206.06,206.05,33.45564575]
[1757290677597,0.06,206.06,206.05,76.19123976]
[1757290678884,0.06,206.06,206.05,75.53123976]
[1757290679917,0.06,206.06,206.05,57.08245478]
[1757290680121,0.72,206.06,206.05,1.94245478]
[1757290681201,0.72,206.06,206.05,82.04245478]
[1757290685410,0.06,206.06,206.05,82.04245478]
[1757290686611,0.75,206.06,206.05,82.04245478]
[1757290687890,5.60295544,206.06,206.05,80.1]
[1757290688704,9.42466389,206.06,206.04,3.88170845]
[1757290689015,0.69,206.05,206.03,0.03]
[1757290689306,0.69,206.05,206.03,9.45466389]
[1757290689488,0.69,206.04,206.03,9.45466389]
[1757290690509,4.51170845,206.04,206.03,0.03]
[1757290691812,5.54342651,206.04,206.03,0.03]
[1757290691988,9.36513496,206.04,206.03,0.03]
[1757290692620,5.54342651,206.04,206.03,0.03]
[1757290693023,0.69,206.04,206.03,0.03]
[1757290694710,0.06,206.06,206.03,0.74]
[1757290694910,0.06,206.06,206.05,26.0]
[1757290698215,0.06,206.06,206.05,30.85319097]
[1757290699211,0.06,206.06,206.05,110.95319097]
[1757290700101,0.75,206.06,206.05,80.1]
[1757290700597,0.75,206.06,206.03,0.03]
[1757290700803,4.57170845,206.06,206.03,0.03]
[1757290701398,0.75,206.06,206.03,0.03]
[1757290701600,4.57170845,206.06,206.03,0.03]
[1757290702531,0.69,206.05,206.03,0.03]
[1757290702818,0.75,206.06,206.03,0.03]
[1757290704901,0.69,206.05,206.03,0.03]
[1757290705603,0.06,206.06,206.03,0.03]
[1757290705902,0.69,206.05,206.03,0.03]
[1757290709136,0.06,206.06,206.03,0.74]
[1757290709506,0.75,206.06,206.03,0.03]
[1757290709705,0.06,206.06,206.03,0.03]
[1757290709905,0.69,206.05,206.03,0.03]
[1757290711006,0.69,206.05,206.03,80.13]
[1757290712112,0.69,206.05,206.03,109.27]
[1757290712312,0.69,206.05,206.03,80.13]
[1757290712533,0.69,206.04,206.03,80.13]
[1757290714929,0.75,206.06,206.03,80.13]
[1757290715128,0.72,206.05,206.03,80.13]
[1757290715329,0.72,206.04,206.03,80.13]
[1757290716833,5.57342651,206.04,206.03,0.03]
[1757290720514,8.01696731,206.04,206.03,0.03]
[1757290720715,11.60301031,206.04,206.03,0.03]
[1757290721131,8.01696731,206.04,206.03,0.03]
[1757290722142,11.60334364,206.04,206.03,0.03]
[1757290725755,49.34334364,206.04,206.03,0.03]
[1757290728953,11.60334364,206.04,206.03,0.03]
[1757290729167,49.34334364,206.04,206.03,0.03]
[1757290731048,9.15980284,206.04,206.03,0.03]
[1757290731241,49.34334364,206.04,206.03,0.03]
[1757290734358,49.33595196,206.04,206.03,0.03]
[1757290737460,88.93154597,206.04,206.03,0.03]
[1757290738460,88.99154597,206.04,206.03,0.03]
[1757290739940,101.12511226,206.04,206.0,0.03]
[1757290740257,12.217704,206.01,206.0,0.03]
[1757290740447,53.53668865,206.01,206.0,0.03]
[1757290740758,54.25668865,206.01,206.0,0.03]
[1757290741956,59.11082194,206.01,206.0,0.03]
[1757290744154,59.10671397,206.01,206.0,0.03]
[1757290744469,49.33255077,206.01,206.0,0.03]
[1757290746981,49.33155097,206.01,206.0,0.03]
[1757290747152,59.10571417,206.01,206.0,0.03]
[1757290755376,59.10609526,206.01,206.0,0.03]
[1757290756461,72.70168927,206.01,206.0,0.03]
[1757290757355,74.64556,206.01,206.0,0.03]
[1757290758253,74.64556,206.01,205.97,0.03]
[1757290758254,26.0,205.98,205.97,0.03]
[1757290758572,69.73779877,205.98,205.97,0.03]
[1757290758753,70.43779877,205.98,205.97,0.03]
[1757290759363,77.23669873,205.98,205.97,0.03]
[1757290759757,13.59559401,205.97,205.94,0.03]
[1757290759955,16.03913481,205.95,205.94,0.03]
[1757290760156,19.61339278,205.95,205.94,0.03]
[1757290760368,22.25783048,205.95,205.94,0.03]
[1757290760565,22.75783048,205.95,205.94,0.03]
[1757290760871,27.61337794,205.95,205.94,0.03]
[1757290761171,27.61337794,205.95,205.92,0.03]
[1757290761172,13.59559401,205.94,205.92,0.03]
[1757290761372,43.73779877,205.93,205.92,0.03]
[1757290761563,44.43779877,205.93,205.92,0.03]
[1757290762159,6.71779877,205.93,205.92,0.03]
[1757290762371,44.43779877,205.93,205.92,0.03]
[1757290762566,46.38233099,205.93,205.92,0.03]
[1757290763167,51.23835002,205.93,205.92,0.03]
[1757290765074,47.66409205,205.93,205.92,0.03]
[1757290765269,51.23401357,205.93,205.92,0.03]
[1757290766265,39.59559401,205.91,205.9,0.03]
[1757290766581,88.53682153,205.91,205.9,0.03]
[1757290766781,81.58347583,205.91,205.9,0.03]
[1757290766995,89.23682153,205.91,205.9,0.03]
[1757290767377,58.31822263,205.91,205.9,0.03]
[1757290767693,96.03822263,205.91,205.9,0.03]
[1757290769369,58.31822263,205.91,205.9,0.03]
[1757290769569,96.0273759,205.91,205.9,0.03]
[1757290770665,91.50070305,205.91,205.9,0.03]
[1757290770885,92.20070305,205.91,205.9,0.03]
[1757290771088,87.94366796,205.91,205.9,0.03]
[1757290771685,50.22366796,205.91,205.9,0.03]
[1757290771996,87.94366796,205.91,205.9,0.03]
[1757290772895,88.64366796,205.91,205.9,0.03]
[1757290773096,50.92366796,205.91,205.9,0.03]
[1757290773269,88.64366796,205.91,205.9,0.03]
[1757290773689,50.92366796,205.91,205.9,0.03]
[1757290773892,88.64366796,205.91,205.9,0.03]
[1757290774089,50.22366796,205.91,205.9,0.03]
[1757290774288,87.94366796,205.91,205.9,0.03]
[1757290774791,50.92366796,205.91,205.9,0.03]
[1757290775096,88.64366796,205.91,205.9,0.03]
[1757290776025,50.92366796,205.91,205.9,0.03]
[1757290776170,88.64366796,205.91,205.9,0.03]
[1757290776370,36.62807395,205.91,205.9,0.03]
[1757290776674,74.34807395,205.91,205.9,0.03]
[1757290777465,32.8014011,205.91,205.9,0.03]
[1757290777701,6.8014011,205.91,205.9,0.75]
[1757290777871,46.40316354,205.91,205.9,0.75]
[1757290778997,46.40316354,205.91,205.9,0.03]
[1757290780582,42.57649069,205.91,205.9,0.03]
[1757290780782,50.94983639,205.91,205.9,0.03]
[1757290780982,54.50732318,205.91,205.9,0.03]
[1757290781188,4.85649069,205.91,205.9,0.03]
[1757290781373,46.40316354,205.91,205.9,0.03]
[1757290781792,47.12316354,205.91,205.9,0.03]
[1757290782303,50.94983639,205.91,205.9,0.03]
[1757290782607,54.50831392,205.91,205.9,0.03]
[1757290783903,18.73294067,205.91,205.9,0.03]
[1757290784093,56.45294067,205.91,205.9,0.03]
[1757290784296,18.73294067,205.91,205.9,0.03]
[1757290784603,56.45294067,205.91,205.9,0.03]
[1757290784781,52.62626782,205.91,205.9,0.03]
[1757290787077,96.04853468,205.91,205.9,0.03]
[1757290790213,96.10853468,205.91,205.9,0.03]
[1757290790585,58.38853468,205.91,205.9,0.03]
[1757290790784,40.24626782,205.91,205.9,0.03]
[1757290791085,77.96626782,205.91,205.9,0.03]
[1757290791607,40.24626782,205.91,205.9,0.03]
[1757290791811,77.96626782,205.91,205.9,0.03]
[1757290792910,78.68626782,205.91,205.9,0.03]
[1757290793493,77.96626782,205.91,205.9,0.03]
[1757290793801,78.68626782,205.91,205.9,0.03]
[1757290795095,78.69627024,205.91,205.9,0.03]
[1757290801313,82.52294309,205.91,205.89,1e-08]
[1757290801518,11.22182565,205.9,205.89,1e-08]
[1757290801821,24.81741966,205.9,205.89,1e-08]
[1757290802025,27.48233007,205.9,205.89,1e-08]
[1757290802520,19.82898437,205.9,205.89,1e-08]
[1757290802723,22.93565722,205.9,205.89,1e-08]
[1757290803225,47.04006321,205.9,205.89,1e-08]
[1757290803602,51.89678977,205.9,205.89,1e-08]
[1757290804204,10.37011692,205.9,205.89,1e-08]
[1757290804421,51.89678977,205.9,205.89,1e-08]
[1757290807822,51.95678977,205.9,205.89,1e-08]
[1757290808624,51.97391332,205.9,205.89,1e-08]
[1757290809420,14.27391332,205.9,205.89,1e-08]
[1757290809627,51.97391332,205.9,205.89,1e-08]
[1757290810033,14.27391332,205.9,205.89,1e-08]
[1757290810330,51.97391332,205.9,205.89,1e-08]
[1757290811522,14.27391332,205.9,205.89,1e-08]
[1757290811720,51.97391332,205.9,205.89,1e-08]
[1757290812128,14.27391332,205.9,205.89,1e-08]
[1757290812509,51.97391332,205.9,205.89,1e-08]
[1757290812707,52.66391332,205.9,205.89,1e-08]
[1757290813737,51.97391332,205.9,205.89,1e-08]
[1757290814319,52.66391332,205.9,205.89,1e-08]
[1757290815012,51.97391332,205.9,205.89,1e-08]
[1757290817431,50.02900291,205.9,205.89,1e-08]
[1757290818710,50.71900291,205.9,205.89,1e-08]
[1757290819109,52.66381876,205.9,205.89,1e-08]
[1757290820033,48.83714591,205.9,205.89,1e-08]
[1757290820233,52.66381876,205.9,205.89,1e-08]
[1757290825228,14.27381876,205.9,205.89,0.69000001]
[1757290825415,51.95381876,205.9,205.89,1e-08]
[1757290826420,51.2654057,205.9,205.89,1e-08]
[1757290828124,64.86099971,205.9,205.89,1e-08]
[1757290830418,64.86298954,205.9,205.89,1e-08]
[1757290830638,51.26739553,205.9,205.89,1e-08]
[1757290834345,48.81913574,205.9,205.89,1e-08]
[1757290834519,51.26739553,205.9,205.89,1e-08]
[1757290836541,47.6798022,205.9,205.89,1e-08]
[1757290837132,47.6598022,205.9,205.89,1e-08]
[1757290838327,45.21154241,205.9,205.89,1e-08]
[1757290838529,47.6598022,205.9,205.89,1e-08]
[1757290838834,71.04843537,205.9,205.89,1e-08]
[1757290841128,61.25539621,205.9,205.89,1e-08]
[1757290841634,71.04843537,205.9,205.89,1e-08]
[1757290844942,61.25539621,205.9,205.89,1e-08]
[1757290845137,9.3098022,205.9,205.89,1e-08]
[1757290845341,46.9698022,205.9,205.89,1e-08]
[1757290846060,47.6798022,205.9,205.89,1e-08]
[1757290846249,46.9698022,205.9,205.89,1e-08]
[1757290846554,47.6798022,205.9,205.89,1e-08]
[1757290847129,45.23154241,205.9,205.89,1e-08]
[1757290847328,47.6798022,205.9,205.89,1e-08]
[1757290848858,45.23154241,205.9,205.89,1e-08]
[1757290849057,47.6798022,205.9,205.89,1e-08]
[1757290851957,61.27539621,205.9,205.89,1e-08]
[1757290853638,58.82713642,205.9,205.89,1e-08]
[1757290853860,71.06843537,205.9,205.89,1e-08]
[1757290854035,61.27539621,205.9,205.89,1e-08]
[1757290855059,61.27539621,205.9,205.89,1e-08]
[1757290856164,58.82713642,205.9,205.89,1e-08]
[1757290856346,39.59559401,205.87,205.86,0.03]
[1757290856538,77.23559401,205.87,205.86,0.03]
[1757290856743,66.08825979,205.87,205.86,0.03]
[1757290856940,68.03335935,205.87,205.86,0.03]
[1757290857642,65.58509956,205.87,205.86,0.03]
[1757290857869,72.89079365,205.87,205.86,0.03]
[1757290858272,73.60079365,205.87,205.86,0.03]
[1757290858966,70.44253386,205.87,205.86,0.03]
[1757290859170,35.25079365,205.87,205.86,0.74]
[1757290859339,72.89079365,205.87,205.86,0.74]
[1757290859666,73.60079365,205.87,205.86,0.03]
[1757290860465,70.44253386,205.87,205.86,0.03]
[1757290860836,72.89079365,205.87,205.86,0.74]
[1757290861037,70.44253386,205.87,205.86,0.03]
[1757290861252,72.89079365,205.87,205.86,0.03]
[1757290861859,70.44253386,205.87,205.86,0.03]
[1757290862245,72.89079365,205.87,205.86,0.03]
[1757290864855,70.44253386,205.87,205.86,0.03]
[1757290865067,73.60079365,205.87,205.86,0.03]
[1757290865262,72.89079365,205.87,205.86,0.03]
[1757290866262,73.59079365,205.87,205.86,0.03]
[1757290867761,73.59079365,205.87,205.85,1e-08]
[1757290867942,2.44825979,205.86,205.85,1e-08]
[1757290868360,3.14825979,205.86,205.85,1e-08]
[1757290868941,9.9511242,205.86,205.85,1e-08]
[1757290869955,7.50286441,205.86,205.85,1e-08]
[1757290870266,9.2511242,205.86,205.85,1e-08]
[1757290870658,6.80286441,205.86,205.85,0.68000001]
[1757290870867,71.30593005,205.86,205.85,0.68000001]
[1757290871173,71.30593005,205.86,205.85,1e-08]
[1757290871347,45.30593005,205.86,205.85,0.68000001]
[1757290871875,45.30593005,205.86,205.85,1e-08]
[1757290872571,46.00593005,205.86,205.85,1e-08]
[1757290873550,45.30593005,205.86,205.85,1e-08]
[1757290874272,46.00593005,205.86,205.85,1e-08]
[1757290877170,42.85767026,205.86,205.85,1e-08]
[1757290877470,45.30593005,205.86,205.85,1e-08]
[1757290877776,42.85767026,205.86,205.85,1e-08]
[1757290877962,45.30593005,205.86,205.85,1e-08]
[1757290879178,46.00593005,205.86,205.85,1e-08]
[1757290879873,45.50276983,205.86,205.85,1e-08]
[1757290880173,47.95102962,205.86,205.85,1e-08]
[1757290883484,45.50276983,205.86,205.85,1e-08]
[1757290883658,47.25102962,205.86,205.85,1e-08]
[1757290884356,47.95102962,205.86,205.85,1e-08]
[1757290884967,44.80276983,205.86,205.85,1e-08]
[1757290885170,47.25102962,205.86,205.85,1e-08]
[1757290888473,49.3300206,205.86,205.85,1e-08]
[1757290888681,45.50276983,205.86,205.85,1e-08]
[1757290888879,49.3300206,205.86,205.85,1e-08]
[1757290890969,44.47235034,205.86,205.85,1e-08]
[1757290894169,43.77235034,205.86,205.85,1e-08]
[1757290894368,1.94509957,205.86,205.85,0.68000001]
[1757290894588,40.12509957,205.86,205.85,0.68000001]
[1757290894882,38.18,205.86,205.85,0.68000001]
[1757290895876,38.24,205.86,205.85,0.68000001]
[1757290896470,42.77725077,205.86,205.85,1e-08]
[1757290897991,38.95,205.86,205.85,1e-08]
[1757290898185,42.77725077,205.86,205.85,1e-08]
[1757290898696,38.95,205.86,205.85,1e-08]
[1757290898992,47.63492103,205.86,205.85,1e-08]
[1757290899292,43.09767026,205.86,205.85,1e-08]
[1757290899477,46.92492103,205.86,205.85,1e-08]
[1757290899666,47.63492103,205.86,205.85,1e-08]
[1757290902995,43.80767026,205.86,205.85,1e-08]
[1757290903305,47.63492103,205.86,205.85,1e-08]
[1757290904596,49.5800206,205.86,205.85,1e-08]
[1757290906299,49.5800206,205.86,205.83,1e-08]
[1757290906503,8.68539301,205.84,205.83,1e-08]
[1757290906696,46.84539301,205.84,205.83,1e-08]
[1757290906878,47.55539301,205.84,205.83,1e-08]
[1757290907198,49.50077637,205.84,205.83,1e-08]
[1757290911488,45.6735256,205.84,205.83,1e-08]
[1757290911787,49.50077637,205.84,205.83,1e-08]
[1757290911987,45.6735256,205.84,205.83,1e-08]
[1757290912201,49.50077637,205.84,205.83,1e-08]
[1757290913002,45.6735256,205.84,205.83,1e-08]
[1757290913190,49.50077637,205.84,205.83,1e-08]
[1757290913797,45.6735256,205.84,205.83,1e-08]
[1757290914100,49.50077637,205.84,205.83,1e-08]
[1757290916393,48.79077637,205.84,205.83,1e-08]
[1757290916785,49.50077637,205.84,205.83,1e-08]
[1757290930622,49.56077637,205.84,205.83,1e-08]
[1757290930814,6.8635256,205.84,205.83,1e-08]
[1757290931016,6.8635256,205.84,205.83,0.67000001]
[1757290931203,42.91814224,205.84,205.83,0.67000001]
[1757290934617,0.06,205.84,205.83,0.67000001]
[1757290934924,38.04,205.84,205.83,0.67000001]
[1757290936302,0.06,205.87,205.85,29.17]
[1757290936622,0.06,205.92,205.85,29.17]
[1757290936623,23.11716702,205.91,205.9,42.76559401]
[1757290937014,0.06,205.92,205.9,42.76559401]
[1757290937233,0.06,205.92,205.91,44.4520847]
[1757290937530,0.06,205.92,205.91,62.19757358]
[1757290938628,0.06,205.95,205.94,39.59559401]
[1757290938809,0.06,206.03,205.95,42.76559401]
[1757290939130,30.84,206.01,205.98,26.0]
[1757290940120,31.5,206.01,205.95,68.76559401]
[1757290940721,36.35416804,206.01,205.95,68.76559401]
[1757290942515,36.35416804,206.01,205.95,42.76559401]
[1757290944619,36.35416804,206.01,205.95,47.62111925]
[1757290944836,31.5,206.01,205.95,47.62111925]
[1757290947227,36.35415985,206.01,205.95,42.76559401]
[1757290947817,36.41415985,206.01,205.95,42.76559401]
[1757290948320,36.41415985,206.01,205.95,122.86559401]
[1757290948720,3.10497827,206.0,205.95,80.1]
[1757290949034,2.44497827,205.98,205.95,80.1]
[1757290949237,38.54,205.97,205.95,80.1]
[1757290949441,38.54,205.97,205.91,0.03]
[1757290949442,3.10497827,205.96,205.91,0.03]
[1757290949735,2.44497827,205.93,205.91,0.03]
[1757290949939,37.88,205.92,205.91,0.03]
[1757290950235,38.54,205.92,205.91,0.03]
[1757290951158,43.39625485,205.92,205.91,0.03]
[1757290951517,43.39625485,205.92,205.88,0.03]
[1757290951518,57.98187026,205.92,205.88,0.03]
[1757290951722,20.1009555,205.92,205.88,0.03]
[1757290951916,37.86,205.91,205.88,0.03]
[1757290952332,38.52,205.91,205.88,0.03]
[1757290954136,0.5,205.89,205.88,0.03]
[1757290954833,1.16,205.89,205.88,0.03]
[1757290956237,8.46194072,205.89,205.88,0.03]
[1757290956545,0.5,205.89,205.88,0.03]
[1757290956747,1.22,205.89,205.88,0.03]
[1757290957547,6.07696245,205.89,205.88,0.03]
[1757290957725,5.57696245,205.89,205.88,0.03]
[1757290958130,0.72,205.89,205.88,0.03]
[1757290958352,4.85677397,205.9,205.88,0.03]
[1757290958726,5.57677397,205.9,205.88,0.03]
[1757290959633,0.72,205.89,205.88,0.03]
[1757290962043,42.71651318,205.91,205.88,0.03]
[1757290962353,7.3017965,205.9,205.88,0.03]
[1757290962561,0.72,205.89,205.88,0.03]
[1757290964538,5.57696245,205.89,205.88,0.03]
[1757290967144,8.02194072,205.89,205.88,0.03]
[1757290968955,5.57696245,205.89,205.88,0.03]
[1757290969761,6.07696245,205.89,205.88,0.03]
[1757290970564,0.5,205.89,205.88,0.03]
[1757290970765,37.86,205.91,205.88,0.03]
[1757290971266,38.58,205.91,205.88,0.03]
[1757290971940,37.86,205.91,205.88,0.03]
[1757290972141,0.72,205.9,205.88,0.03]
[1757290972558,37.86,205.91,205.88,0.03]
[1757290972758,0.72,205.9,205.88,0.03]
[1757290972954,0.72,205.91,205.88,0.03]
[1757290973154,37.74,205.89,205.88,0.03]
[1757290975772,1.94424867,205.96,205.89,29.17]
[1757290975958,0.06,206.01,205.97,26.0]
[1757290976475,38.54,206.01,205.98,1.9431153]
[1757290976861,37.82,206.01,205.98,1.9431153]
[1757290978045,37.82,206.01,205.98,6.79793042]
[1757290978244,38.54,206.01,205.98,6.79793042]
[1757290978870,38.54,206.01,205.98,1.9431153]
[1757290979060,3.16497827,206.0,205.92,4.85625485]
[1757290979261,3.16497827,205.99,205.92,4.85625485]
[1757290979465,0.72,205.99,205.92,19.46245192]
[1757290980874,0.72,205.99,205.92,4.88625485]
[1757290981267,0.72,205.99,205.93,14.57548888]
[1757290982361,0.72,205.99,205.94,4.85578323]
[1757290982568,0.72,205.99,205.94,4.88578323]
[1757290983071,37.82,206.01,205.95,0.03]
[1757290983276,37.82,206.01,205.96,26.0]
[1757290983471,37.82,206.01,205.98,26.0]
[1757290983967,37.82,206.01,205.99,0.03]
[1757290984377,37.82,206.01,205.99,4.88460459]
[1757290984683,0.06,206.01,206.0,0.03]
[1757290984880,0.06,206.01,205.99,4.85460459]
[1757290985088,0.06,206.01,206.0,0.03]
[1757290985785,0.06,206.01,206.0,13.62559401]
[1757290986158,0.06,206.03,206.02,26.0]
[1757290986361,0.06,206.04,206.03,30.85366208]
[1757290986763,0.06,206.04,206.03,26.0]
[1757290986960,0.06,206.04,206.03,27.94245478]
[1757290987183,0.06,206.04,206.03,57.11245478]
[1757290988084,0.06,206.04,206.03,61.96611686]
[1757290992361,0.06,206.07,206.06,39.59559401]
[1757290992585,0.2,206.12,206.06,39.59559401]
[1757290992586,1e-08,206.12,206.11,42.76559401]
[1757290992896,0.67,206.2,206.16,26.0]
[1757290993068,0.67,206.19,206.16,26.0]
[1757290993267,0.67,206.18,206.16,26.0]
[1757290993466,0.2,206.21,206.17,2.44497827]
[1757290993701,0.2,206.21,206.16,26.0]
[1757290994186,0.67,206.2,206.16,26.0]
[1757290994393,0.67,206.19,206.16,26.0]
[1757290994680,0.67,206.18,206.14,14.56133964]
[1757290994884,2.44497827,206.16,206.07,34.02270649]
[1757290995087,0.67,206.17,206.04,12.16308697]
[1757290995088,2.44497827,206.14,206.04,13.59559401]
[1757290995256,0.67,206.13,206.05,14.56628875]
[1757290995684,0.67,206.12,206.05,14.56628875]
[1757290995889,0.67,206.11,206.05,14.56628875]
[1757290996280,0.67,206.1,206.06,4.85295544]
[1757290996595,0.67,206.09,206.06,4.85295544]
[1757290997055,0.67,206.09,206.07,29.17]
[1757290997255,0.67,206.11,206.07,29.17]
[1757290997471,0.67,206.1,206.07,29.17]
[1757291000706,0.67,206.13,206.07,4.8527151]
[1757291001012,0.67,206.15,206.1,26.0]
[1757291001237,0.67,206.17,206.1,55.17]
[1757291001513,0.67,206.17,206.1,55.2]
[1757291001703,0.67,206.17,206.1,135.3]
[1757291001906,0.2,206.21,206.16,29.17]
[1757291002405,0.2,206.21,206.16,29.2]
[1757291002818,0.2,206.21,206.17,4.8503662]
[1757291004507,0.67,206.2,206.15,29.17]
[1757291004701,0.2,206.21,206.15,26.0]
[1757291004702,0.67,206.19,206.15,26.0]
[1757291005016,0.67,206.18,206.15,26.0]
[1757291005221,0.67,206.17,206.15,26.0]
[1757291005593,0.67,206.16,206.12,34.02149864]
[1757291005899,0.67,206.18,206.12,34.02149864]
[1757291007140,0.67,206.18,206.12,114.12149864]
[1757291012229,0.67,206.17,206.12,109.27]
[1757291012516,0.67,206.17,206.12,29.17]
[1757291012517,0.67,206.16,206.12,29.17]
[1757291012715,0.67,206.15,206.12,29.17]
[1757291013497,0.67,206.14,206.09,60.05207372]